[Event "Titled Tuesday Blitz February 28 Late 2023"]
[White "Salimova, Nurgyul"]
[Black "Pein, Jonathan"]
[WhiteFideId "2915138"]
[BlackFideId "417092"]
[WhiteElo "2314"]
[BlackElo "2151"]
[Result "1-0"]
[Round "01"]
[TimeControl "180+2"]
[Date "2023.02.28"]
[WhiteClock "0:00:23"]
[BlackClock "0:00:39"]

1. d4 {[%clk 0:02:59]}  d6 {[%clk 0:02:59]} 2. Nf3 {[%clk 0:02:57]}  Nf6 {[%clk 0:02:59]} 3. g3 {[%clk 0:02:57]}  g6 {[%clk 0:02:59]} 4. Bg2 {[%clk 0:02:58]}  Bg7 {[%clk 0:03:00]} 5. O-O {[%clk 0:02:58]}  O-O {[%clk 0:03:01]} 6. c4 {[%clk 0:02:59]}  c6 {[%clk 0:03:01]} 7. Nc3 {[%clk 0:02:58]}  Qa5 {[%clk 0:03:00]} 8. e4 {[%clk 0:02:52]}  Bg4 {[%clk 0:03:00]} 9. h3 {[%clk 0:02:41]}  Bxf3 {[%clk 0:03:01]} 10. Bxf3 {[%clk 0:02:40]}  Nfd7 {[%clk 0:02:59]} 11. Bg2 {[%clk 0:02:32]}  a6 {[%clk 0:02:54]} 12. Be3 {[%clk 0:02:28]}  c5 {[%clk 0:02:54]} 13. Nd5 {[%clk 0:02:12]}  Nc6 {[%clk 0:02:34]} 14. dxc5 {[%clk 0:02:11]}  Nxc5 {[%clk 0:02:30]} 15. b4 {[%clk 0:01:54]}  Nxb4 {[%clk 0:02:09]} 16. Bd2 {[%clk 0:01:54]}  Ncd3 {[%clk 0:02:01]} 17. Rb1 {[%clk 0:01:49]}  Qxa2 {[%clk 0:01:49]} 18. Bxb4 {[%clk 0:01:38]}  Nxb4 {[%clk 0:01:49]} 19. Nxe7+ {[%clk 0:01:34]}  Kh8 {[%clk 0:01:49]} 20. Rxb4 {[%clk 0:01:35]}  a5 {[%clk 0:01:38]} 21. Ra4 {[%clk 0:01:29]}  Qb2 {[%clk 0:01:35]} 22. Qxd6 {[%clk 0:01:24]}  Rfe8 {[%clk 0:01:27]} 23. Nd5 {[%clk 0:01:20]}  Rad8 {[%clk 0:01:26]} 24. Qa3 {[%clk 0:01:17]}  Qe2 {[%clk 0:01:21]} 25. Qe3 {[%clk 0:01:09]}  Qc2 {[%clk 0:01:10]} 26. Rxa5 {[%clk 0:01:03]}  Qxc4 {[%clk 0:01:10]} 27. Qb6 {[%clk 0:00:50]}  f5 {[%clk 0:00:58]} 28. exf5 {[%clk 0:00:47]}  gxf5 {[%clk 0:00:59]} 29. Qxb7 {[%clk 0:00:42]}  Re5 {[%clk 0:00:51]} 30. Ra7 {[%clk 0:00:37]}  Rg8 {[%clk 0:00:48]} 31. Ne7 {[%clk 0:00:34]}  Rxe7 {[%clk 0:00:44]} 32. Qxe7 {[%clk 0:00:34]}  f4 {[%clk 0:00:45]} 33. Qf7 {[%clk 0:00:25]}  Qxf7 {[%clk 0:00:38]} 34. Rxf7 {[%clk 0:00:24]}  fxg3 {[%clk 0:00:39]} 35. fxg3 {[%clk 0:00:23]} 1-0


[Site "https://www.chess.com"]

[Event "Titled Tuesday Blitz February 28 Late 2023"]
[White "Aguilar, Juan"]
[Black "Erdogdu, Mert"]
[WhiteFideId "3800091"]
[BlackFideId "6301495"]
[WhiteElo "2395"]
[BlackElo "2407"]
[Result "1/2-1/2"]
[Round "01"]
[TimeControl "180+2"]
[Date "2023.02.28"]
[WhiteClock "0:00:16"]
[BlackClock "0:00:29"]

1. Nf3 {[%clk 0:02:59]}  d5 {[%clk 0:02:56]} 2. g3 {[%clk 0:02:58]}  c5 {[%clk 0:02:56]} 3. Bg2 {[%clk 0:02:58]}  e6 {[%clk 0:02:55]} 4. O-O {[%clk 0:02:58]}  Nf6 {[%clk 0:02:55]} 5. d3 {[%clk 0:02:58]}  Be7 {[%clk 0:02:56]} 6. Nbd2 {[%clk 0:02:55]}  Nc6 {[%clk 0:02:56]} 7. e4 {[%clk 0:02:54]}  O-O {[%clk 0:02:57]} 8. Re1 {[%clk 0:02:49]}  b5 {[%clk 0:02:57]} 9. a4 {[%clk 0:02:48]}  b4 {[%clk 0:02:55]} 10. b3 {[%clk 0:02:48]}  Qc7 {[%clk 0:02:46]} 11. Bb2 {[%clk 0:02:44]}  Ba6 {[%clk 0:02:45]} 12. exd5 {[%clk 0:02:38]}  exd5 {[%clk 0:02:42]} 13. Ne5 {[%clk 0:02:36]}  Rfe8 {[%clk 0:02:34]} 14. Ndf3 {[%clk 0:02:23]}  Rad8 {[%clk 0:02:23]} 15. Nxc6 {[%clk 0:02:08]}  Qxc6 {[%clk 0:02:23]} 16. Ne5 {[%clk 0:02:09]}  Qc7 {[%clk 0:02:19]} 17. Qf3 {[%clk 0:01:38]}  Bc8 {[%clk 0:02:06]} 18. h3 {[%clk 0:01:15]}  h5 {[%clk 0:01:57]} 19. g4 {[%clk 0:01:02]}  Bd6 {[%clk 0:01:44]} 20. g5 {[%clk 0:00:50]}  Bxe5 {[%clk 0:01:44]} 21. Bxe5 {[%clk 0:00:49]}  Rxe5 {[%clk 0:01:44]} 22. gxf6 {[%clk 0:00:45]}  Rde8 {[%clk 0:01:37]} 23. Rxe5 {[%clk 0:00:32]}  Qxe5 {[%clk 0:01:38]} 24. Rd1 {[%clk 0:00:26]}  Qxf6 {[%clk 0:01:19]} 25. Qxf6 {[%clk 0:00:23]}  gxf6 {[%clk 0:01:20]} 26. Bxd5 {[%clk 0:00:21]}  Re2 {[%clk 0:01:19]} 27. Kg2 {[%clk 0:00:16]}  Rxc2 {[%clk 0:01:18]} 28. Re1 {[%clk 0:00:12]}  Kf8 {[%clk 0:01:17]} 29. Re4 {[%clk 0:00:10]}  Rc3 {[%clk 0:01:13]} 30. Rh4 {[%clk 0:00:05]}  Rxd3 {[%clk 0:01:08]} 31. Bc4 {[%clk 0:00:06]}  Rc3 {[%clk 0:01:08]} 32. Rxh5 {[%clk 0:00:05]}  Bd7 {[%clk 0:01:06]} 33. Rxc5 {[%clk 0:00:04]}  Bxh3+ {[%clk 0:01:05]} 34. Kh2 {[%clk 0:00:04]}  Be6 {[%clk 0:01:04]} 35. Rc7 {[%clk 0:00:04]}  Bxc4 {[%clk 0:01:03]} 36. bxc4 {[%clk 0:00:05]}  a6 {[%clk 0:00:41]} 37. Ra7 {[%clk 0:00:04]}  Rxc4 {[%clk 0:00:29]} 38. Rxa6 {[%clk 0:00:04]}  Rc2 {[%clk 0:00:27]} 39. Kg2 {[%clk 0:00:04]}  Ra2 {[%clk 0:00:27]} 40. a5 {[%clk 0:00:03]}  b3 {[%clk 0:00:27]} 41. Rb6 {[%clk 0:00:03]}  b2 {[%clk 0:00:27]} 42. a6 {[%clk 0:00:04]}  Ke7 {[%clk 0:00:26]} 43. a7 {[%clk 0:00:04]}  f5 {[%clk 0:00:24]} 44. Rxb2 {[%clk 0:00:03]}  Rxa7 {[%clk 0:00:24]} 45. Re2+ {[%clk 0:00:03]}  Kf6 {[%clk 0:00:25]} 46. Rb2 {[%clk 0:00:03]}  Kg5 {[%clk 0:00:25]} 47. Kf3 {[%clk 0:00:03]}  Ra3+ {[%clk 0:00:25]} 48. Kg2 {[%clk 0:00:04]}  f4 {[%clk 0:00:25]} 49. Rb8 {[%clk 0:00:04]}  f3+ {[%clk 0:00:25]} 50. Kg3 {[%clk 0:00:04]}  f6 {[%clk 0:00:23]} 51. Rg8+ {[%clk 0:00:04]}  Kf5 {[%clk 0:00:24]} 52. Rb8 {[%clk 0:00:04]}  Ra5 {[%clk 0:00:22]} 53. Rb3 {[%clk 0:00:04]}  Kg5 {[%clk 0:00:22]} 54. Rxf3 {[%clk 0:00:04]}  f5 {[%clk 0:00:23]} 55. Rc3 {[%clk 0:00:04]}  Rd5 {[%clk 0:00:23]} 56. Kf3 {[%clk 0:00:04]}  Re5 {[%clk 0:00:23]} 57. Re3 {[%clk 0:00:05]}  Ra5 {[%clk 0:00:22]} 58. Rd3 {[%clk 0:00:04]}  Ra4 {[%clk 0:00:22]} 59. Rc3 {[%clk 0:00:05]}  Ra5 {[%clk 0:00:20]} 60. Kg2 {[%clk 0:00:05]}  f4 {[%clk 0:00:21]} 61. Rc8 {[%clk 0:00:05]}  Kg4 {[%clk 0:00:20]} 62. Rg8+ {[%clk 0:00:05]}  Rg5 {[%clk 0:00:20]} 63. Rxg5+ {[%clk 0:00:06]}  Kxg5 {[%clk 0:00:21]} 64. Kf3 {[%clk 0:00:06]}  Kf5 {[%clk 0:00:22]} 65. Ke2 {[%clk 0:00:06]}  Ke4 {[%clk 0:00:22]} 66. f3+ {[%clk 0:00:05]}  Kd4 {[%clk 0:00:21]} 67. Kd2 {[%clk 0:00:05]}  Kc4 {[%clk 0:00:22]} 68. Kc2 {[%clk 0:00:06]}  Kd4 {[%clk 0:00:21]} 69. Kd2 {[%clk 0:00:06]}  Kd5 {[%clk 0:00:21]} 70. Kd3 {[%clk 0:00:07]}  Ke5 {[%clk 0:00:22]} 71. Kc4 {[%clk 0:00:07]}  Ke6 {[%clk 0:00:22]} 72. Kd4 {[%clk 0:00:06]}  Kf5 {[%clk 0:00:22]} 73. Kd5 {[%clk 0:00:07]}  Kf6 {[%clk 0:00:22]} 74. Ke4 {[%clk 0:00:07]}  Ke6 {[%clk 0:00:22]} 75. Kxf4 {[%clk 0:00:07]}  Kf6 {[%clk 0:00:23]} 76. Ke4 {[%clk 0:00:08]}  Ke6 {[%clk 0:00:24]} 77. f4 {[%clk 0:00:08]}  Kf6 {[%clk 0:00:24]} 78. f5 {[%clk 0:00:09]}  Kf7 {[%clk 0:00:25]} 79. Kf4 {[%clk 0:00:10]}  Kf6 {[%clk 0:00:25]} 80. Ke4 {[%clk 0:00:10]}  Kf7 {[%clk 0:00:26]} 81. Ke5 {[%clk 0:00:11]}  Ke7 {[%clk 0:00:27]} 82. f6+ {[%clk 0:00:12]}  Kf7 {[%clk 0:00:28]} 83. Kf5 {[%clk 0:00:13]}  Kf8 {[%clk 0:00:28]} 84. Ke6 {[%clk 0:00:14]}  Ke8 {[%clk 0:00:29]} 85. f7+ {[%clk 0:00:15]}  Kf8 {[%clk 0:00:29]} 86. Kf6 {[%clk 0:00:16]} 1/2-1/2


[Site "https://www.chess.com"]

[Event "Titled Tuesday Blitz February 28 Late 2023"]
[White "Fus, Jakub"]
[Black "Kovalevsky, Stanislav"]
[WhiteFideId "1193023"]
[BlackFideId "13508598"]
[WhiteElo "2335"]
[BlackElo "2220"]
[Result "1-0"]
[Round "01"]
[TimeControl "180+2"]
[Date "2023.02.28"]
[WhiteClock "0:00:13"]
[BlackClock "0:00:09"]

1. e4 {[%clk 0:03:00]}  e6 {[%clk 0:02:58]} 2. d3 {[%clk 0:02:59]}  d5 {[%clk 0:02:58]} 3. Nd2 {[%clk 0:02:59]}  b6 {[%clk 0:02:58]} 4. Ngf3 {[%clk 0:02:57]}  Bb7 {[%clk 0:02:59]} 5. g3 {[%clk 0:02:27]}  f5 {[%clk 0:02:57]} 6. exf5 {[%clk 0:02:26]}  exf5 {[%clk 0:02:58]} 7. d4 {[%clk 0:02:21]}  Nf6 {[%clk 0:02:56]} 8. Bg2 {[%clk 0:02:19]}  Qe7+ {[%clk 0:02:49]} 9. Ne5 {[%clk 0:02:19]}  Nbd7 {[%clk 0:02:46]} 10. O-O {[%clk 0:02:07]}  Nxe5 {[%clk 0:02:39]} 11. dxe5 {[%clk 0:02:08]}  Qxe5 {[%clk 0:02:23]} 12. Re1 {[%clk 0:02:07]}  Ne4 {[%clk 0:02:24]} 13. Nf3 {[%clk 0:01:29]}  Qd6 {[%clk 0:01:53]} 14. Nd4 {[%clk 0:01:27]}  O-O-O {[%clk 0:01:46]} 15. Nxf5 {[%clk 0:01:22]}  Qf6 {[%clk 0:01:47]} 16. Qg4 {[%clk 0:01:15]}  Kb8 {[%clk 0:01:43]} 17. Bxe4 {[%clk 0:01:15]}  dxe4 {[%clk 0:01:42]} 18. Bg5 {[%clk 0:01:15]}  Qg6 {[%clk 0:01:37]} 19. Nh4 {[%clk 0:01:15]}  Qe8 {[%clk 0:01:03]} 20. Bxd8 {[%clk 0:01:14]}  Qxd8 {[%clk 0:01:03]} 21. Rad1 {[%clk 0:01:14]}  Bd6 {[%clk 0:01:03]} 22. Nf5 {[%clk 0:01:07]}  Qf6 {[%clk 0:00:52]} 23. Qxg7 {[%clk 0:00:55]}  Qxg7 {[%clk 0:00:47]} 24. Nxg7 {[%clk 0:00:55]}  Be5 {[%clk 0:00:46]} 25. Ne6 {[%clk 0:00:53]}  Bxb2 {[%clk 0:00:46]} 26. Ng5 {[%clk 0:00:53]}  Re8 {[%clk 0:00:27]} 27. Nxh7 {[%clk 0:00:43]}  c5 {[%clk 0:00:27]} 28. Ng5 {[%clk 0:00:16]}  Bc3 {[%clk 0:00:26]} 29. Re2 {[%clk 0:00:15]}  Kc7 {[%clk 0:00:24]} 30. Kg2 {[%clk 0:00:15]}  Bd4 {[%clk 0:00:17]} 31. h4 {[%clk 0:00:14]}  Bd5 {[%clk 0:00:13]} 32. Rde1 {[%clk 0:00:14]}  e3+ {[%clk 0:00:12]} 33. f3 {[%clk 0:00:15]}  Bxa2 {[%clk 0:00:11]} 34. c3 {[%clk 0:00:10]}  Bc4 {[%clk 0:00:08]} 35. cxd4 {[%clk 0:00:09]}  Bxe2 {[%clk 0:00:08]} 36. Rxe2 {[%clk 0:00:10]}  cxd4 {[%clk 0:00:09]} 37. Rc2+ {[%clk 0:00:09]}  Kd6 {[%clk 0:00:08]} 38. Ne4+ {[%clk 0:00:09]}  Rxe4 {[%clk 0:00:08]} 39. fxe4 {[%clk 0:00:09]}  d3 {[%clk 0:00:08]} 40. Rc3 {[%clk 0:00:09]}  d2 {[%clk 0:00:06]} 41. Rd3+ {[%clk 0:00:09]}  Ke5 {[%clk 0:00:06]} 42. Kf1 {[%clk 0:00:10]}  Kxe4 {[%clk 0:00:06]} 43. Ke2 {[%clk 0:00:10]}  b5 {[%clk 0:00:05]} 44. Rxe3+ {[%clk 0:00:10]}  Kd4 {[%clk 0:00:04]} 45. Kxd2 {[%clk 0:00:11]}  a5 {[%clk 0:00:04]} 46. h5 {[%clk 0:00:12]}  b4 {[%clk 0:00:04]} 47. h6 {[%clk 0:00:12]}  a4 {[%clk 0:00:05]} 48. h7 {[%clk 0:00:13]}  b3 {[%clk 0:00:06]} 49. h8=Q+ {[%clk 0:00:13]}  Kc4 {[%clk 0:00:07]} 50. Qc3+ {[%clk 0:00:12]}  Kb5 {[%clk 0:00:07]} 51. Re5+ {[%clk 0:00:13]}  Kb6 {[%clk 0:00:07]} 52. Qc5+ {[%clk 0:00:13]}  Kb7 {[%clk 0:00:08]} 53. Re7+ {[%clk 0:00:13]}  Ka8 {[%clk 0:00:09]} 54. Qc8# {[%clk 0:00:13]} 1-0


[Site "https://www.chess.com"]

[Event "Titled Tuesday Blitz February 28 Late 2023"]
[White "Papasimakopoulos, Alexandros"]
[Black "Sarkar, Justin"]
[WhiteFideId "4244125"]
[BlackFideId "2010011"]
[WhiteElo "2359"]
[BlackElo "2189"]
[Result "1/2-1/2"]
[Round "01"]
[TimeControl "180+2"]
[Date "2023.02.28"]
[WhiteClock "0:00:04"]
[BlackClock "0:00:02"]

1. d4 {[%clk 0:02:59]}  d5 {[%clk 0:02:44]} 2. c4 {[%clk 0:02:50]}  e6 {[%clk 0:02:43]} 3. Nc3 {[%clk 0:02:50]}  c5 {[%clk 0:02:42]} 4. cxd5 {[%clk 0:02:43]}  cxd4 {[%clk 0:02:41]} 5. Qa4+ {[%clk 0:02:43]}  Bd7 {[%clk 0:02:40]} 6. Qxd4 {[%clk 0:02:43]}  exd5 {[%clk 0:02:40]} 7. Qxd5 {[%clk 0:02:44]}  Nf6 {[%clk 0:02:40]} 8. Qd1 {[%clk 0:02:44]}  Bc5 {[%clk 0:02:36]} 9. Nf3 {[%clk 0:02:41]}  O-O {[%clk 0:02:32]} 10. e3 {[%clk 0:02:28]}  Nc6 {[%clk 0:02:28]} 11. Be2 {[%clk 0:02:26]}  Qe7 {[%clk 0:02:22]} 12. O-O {[%clk 0:02:25]}  Rfd8 {[%clk 0:02:21]} 13. Nd5 {[%clk 0:02:23]}  Nxd5 {[%clk 0:02:15]} 14. Qxd5 {[%clk 0:02:24]}  Rac8 {[%clk 0:01:54]} 15. Qg5 {[%clk 0:02:17]}  Qxg5 {[%clk 0:01:37]} 16. Nxg5 {[%clk 0:02:17]}  Bf5 {[%clk 0:01:38]} 17. a3 {[%clk 0:02:12]}  a5 {[%clk 0:01:34]} 18. Bf3 {[%clk 0:02:05]}  b6 {[%clk 0:01:05]} 19. b4 {[%clk 0:01:46]}  axb4 {[%clk 0:01:01]} 20. axb4 {[%clk 0:01:45]}  Nxb4 {[%clk 0:00:57]} 21. Bb2 {[%clk 0:01:40]}  Nd3 {[%clk 0:00:55]} 22. Ba3 {[%clk 0:01:33]}  h6 {[%clk 0:00:45]} 23. Ne4 {[%clk 0:01:29]}  Bxa3 {[%clk 0:00:39]} 24. Rxa3 {[%clk 0:01:30]}  Ne5 {[%clk 0:00:37]} 25. Rb3 {[%clk 0:01:17]}  Nxf3+ {[%clk 0:00:30]} 26. gxf3 {[%clk 0:01:18]}  Bh3 {[%clk 0:00:29]} 27. Rfb1 {[%clk 0:01:14]}  Rc6 {[%clk 0:00:28]} 28. Rc3 {[%clk 0:01:03]}  Rxc3 {[%clk 0:00:11]} 29. Nxc3 {[%clk 0:01:02]}  Rd6 {[%clk 0:00:12]} 30. Kh1 {[%clk 0:00:40]}  Rg6 {[%clk 0:00:08]} 31. Rg1 {[%clk 0:00:27]}  Rxg1+ {[%clk 0:00:07]} 32. Kxg1 {[%clk 0:00:28]}  Be6 {[%clk 0:00:07]} 33. f4 {[%clk 0:00:28]}  Bc4 {[%clk 0:00:05]} 34. f3 {[%clk 0:00:17]}  b5 {[%clk 0:00:05]} 35. Kf2 {[%clk 0:00:17]}  b4 {[%clk 0:00:05]} 36. Na4 {[%clk 0:00:17]}  Kf8 {[%clk 0:00:02]} 37. e4 {[%clk 0:00:17]}  Ke7 {[%clk 0:00:02]} 38. Ke3 {[%clk 0:00:17]}  g6 {[%clk 0:00:02]} 39. Kd4 {[%clk 0:00:16]}  Bb3 {[%clk 0:00:02]} 40. Nb6 {[%clk 0:00:15]}  Bd1 {[%clk 0:00:02]} 41. Nd5+ {[%clk 0:00:15]}  Kd6 {[%clk 0:00:02]} 42. Nxb4 {[%clk 0:00:16]}  Bxf3 {[%clk 0:00:02]} 43. Ke3 {[%clk 0:00:16]}  Bg2 {[%clk 0:00:02]} 44. Nc2 {[%clk 0:00:16]}  f6 {[%clk 0:00:02]} 45. Ne1 {[%clk 0:00:17]}  Bf1 {[%clk 0:00:02]} 46. Kd4 {[%clk 0:00:17]}  Ba6 {[%clk 0:00:02]} 47. Nf3 {[%clk 0:00:17]}  Bb7 {[%clk 0:00:01]} 48. Nh4 {[%clk 0:00:18]}  g5 {[%clk 0:00:01]} 49. Nf5+ {[%clk 0:00:18]}  Ke6 {[%clk 0:00:01]} 50. Nxh6 {[%clk 0:00:11]}  gxf4 {[%clk 0:00:02]} 51. Nf5 {[%clk 0:00:11]}  f3 {[%clk 0:00:02]} 52. Ke3 {[%clk 0:00:07]}  Ke5 {[%clk 0:00:02]} 53. Ng3 {[%clk 0:00:07]}  f2 {[%clk 0:00:03]} 54. Kxf2 {[%clk 0:00:07]}  Bxe4 {[%clk 0:00:03]} 55. Ke3 {[%clk 0:00:08]}  Bc2 {[%clk 0:00:03]} 56. Ne2 {[%clk 0:00:08]}  f5 {[%clk 0:00:03]} 57. h3 {[%clk 0:00:06]}  Bb1 {[%clk 0:00:03]} 58. Nf4 {[%clk 0:00:06]}  Bc2 {[%clk 0:00:03]} 59. h4 {[%clk 0:00:05]}  Bb1 {[%clk 0:00:03]} 60. Ng6+ {[%clk 0:00:05]}  Kf6 {[%clk 0:00:03]} 61. Nf4 {[%clk 0:00:06]}  Bc2 {[%clk 0:00:03]} 62. Kd4 {[%clk 0:00:06]}  Be4 {[%clk 0:00:03]} 63. Ne2 {[%clk 0:00:05]}  Bb1 {[%clk 0:00:03]} 64. Ke3 {[%clk 0:00:05]}  Bc2 {[%clk 0:00:03]} 65. Kf4 {[%clk 0:00:05]}  Bd3 {[%clk 0:00:03]} 66. Nd4 {[%clk 0:00:05]}  Bb1 {[%clk 0:00:03]} 67. Nc6 {[%clk 0:00:05]}  Bc2 {[%clk 0:00:02]} 68. Nb4 {[%clk 0:00:06]}  Bb1 {[%clk 0:00:02]} 69. Nd5+ {[%clk 0:00:07]}  Kg6 {[%clk 0:00:02]} 70. Nc3 {[%clk 0:00:07]}  Kh5 {[%clk 0:00:02]} 71. Kg3 {[%clk 0:00:05]}  f4+ {[%clk 0:00:02]} 72. Kxf4 {[%clk 0:00:04]}  Kxh4 {[%clk 0:00:02]} 1/2-1/2


[Site "https://www.chess.com"]

[Event "Titled Tuesday Blitz February 28 Late 2023"]
[White "Lewtak, Damian"]
[Black "Mahitosh, Dey"]
[WhiteFideId "1141724"]
[BlackFideId "25091468"]
[WhiteElo "2302"]
[BlackElo "2034"]
[Result "1-0"]
[Round "01"]
[TimeControl "180+2"]
[Date "2023.02.28"]
[WhiteClock "0:00:58"]
[BlackClock "0:02:06"]

1. e4 {[%clk 0:02:58]}  e5 {[%clk 0:02:58]} 2. Nf3 {[%clk 0:02:59]}  Nf6 {[%clk 0:02:59]} 3. Nxe5 {[%clk 0:02:59]}  d6 {[%clk 0:02:58]} 4. Nf3 {[%clk 0:02:59]}  Nxe4 {[%clk 0:02:58]} 5. c3 {[%clk 0:03:00]}  d5 {[%clk 0:02:53]} 6. d4 {[%clk 0:02:58]}  Bd6 {[%clk 0:02:52]} 7. Bd3 {[%clk 0:02:58]}  O-O {[%clk 0:02:52]} 8. Nbd2 {[%clk 0:02:55]}  Nxd2 {[%clk 0:02:50]} 9. Bxd2 {[%clk 0:02:55]}  Re8+ {[%clk 0:02:51]} 10. Be3 {[%clk 0:02:55]}  Bf4 {[%clk 0:02:50]} 11. O-O {[%clk 0:02:55]}  Bxe3 {[%clk 0:02:50]} 12. fxe3 {[%clk 0:02:56]}  Rxe3 {[%clk 0:02:49]} 13. Ne5 {[%clk 0:02:53]}  f6 {[%clk 0:02:49]} 14. Qh5 {[%clk 0:02:42]}  h6 {[%clk 0:02:49]} 15. Qg6 {[%clk 0:02:24]}  Rxd3 {[%clk 0:02:44]} 16. Nxd3 {[%clk 0:02:04]}  Be6 {[%clk 0:02:43]} 17. Rae1 {[%clk 0:01:54]}  Bf7 {[%clk 0:02:41]} 18. Qg3 {[%clk 0:01:52]}  Nd7 {[%clk 0:02:39]} 19. Nf4 {[%clk 0:01:52]}  Nf8 {[%clk 0:02:39]} 20. Re3 {[%clk 0:01:49]}  Qd7 {[%clk 0:02:38]} 21. Rfe1 {[%clk 0:01:47]}  Qd8 {[%clk 0:02:30]} 22. Qg4 {[%clk 0:01:37]}  g5 {[%clk 0:02:25]} 23. Nd3 {[%clk 0:01:30]}  Ng6 {[%clk 0:02:20]} 24. Nc5 {[%clk 0:01:23]}  b6 {[%clk 0:02:14]} 25. Ne6 {[%clk 0:01:22]}  Qd6 {[%clk 0:02:12]} 26. Qf5 {[%clk 0:01:12]}  Qe7 {[%clk 0:02:08]} 27. Nxg5 {[%clk 0:01:05]}  Qd8 {[%clk 0:02:08]} 28. Nxf7 {[%clk 0:00:58]}  Kxf7 {[%clk 0:02:07]} 29. Rg3 {[%clk 0:00:58]}  Qg8 {[%clk 0:02:06]} 1-0


[Site "https://www.chess.com"]

[Event "Titled Tuesday Blitz February 28 Late 2023"]
[White "Kovacs, Klara"]
[Black "Barbosa, Evandro Amorim"]
[WhiteFideId "733210"]
[BlackFideId "2115824"]
[WhiteElo "2179"]
[BlackElo "2439"]
[Result "0-1"]
[Round "01"]
[TimeControl "180+2"]
[Date "2023.02.28"]
[WhiteClock "0:00:13"]
[BlackClock "0:00:12"]

1. d4 {[%clk 0:02:45]}  Nf6 {[%clk 0:02:59]} 2. Nc3 {[%clk 0:02:42]}  e6 {[%clk 0:03:00]} 3. e4 {[%clk 0:02:37]}  d5 {[%clk 0:03:00]} 4. e5 {[%clk 0:02:33]}  Nfd7 {[%clk 0:03:00]} 5. f4 {[%clk 0:02:33]}  c5 {[%clk 0:03:01]} 6. Nf3 {[%clk 0:02:33]}  Nc6 {[%clk 0:03:01]} 7. Be3 {[%clk 0:02:33]}  Qb6 {[%clk 0:03:02]} 8. dxc5 {[%clk 0:02:33]}  Qxb2 {[%clk 0:02:55]} 9. Na4 {[%clk 0:02:25]}  Qb4+ {[%clk 0:02:41]} 10. c3 {[%clk 0:02:24]}  Qa5 {[%clk 0:02:42]} 11. Rb1 {[%clk 0:02:17]}  a6 {[%clk 0:02:21]} 12. Be2 {[%clk 0:02:12]}  Nxc5 {[%clk 0:02:19]} 13. Nb6 {[%clk 0:02:07]}  Rb8 {[%clk 0:02:07]} 14. O-O {[%clk 0:02:00]}  Qxc3 {[%clk 0:02:02]} 15. Bd2 {[%clk 0:01:53]}  Qa3 {[%clk 0:02:00]} 16. Bc1 {[%clk 0:01:26]}  Qxa2 {[%clk 0:01:52]} 17. Rb2 {[%clk 0:01:26]}  Qa5 {[%clk 0:01:49]} 18. Bd2 {[%clk 0:01:22]}  Qa3 {[%clk 0:01:49]} 19. Qc2 {[%clk 0:01:10]}  Ne4 {[%clk 0:01:48]} 20. Nxc8 {[%clk 0:00:55]}  Rxc8 {[%clk 0:01:43]} 21. Rxb7 {[%clk 0:00:55]}  Qc5+ {[%clk 0:01:41]} 22. Qxc5 {[%clk 0:00:54]}  Bxc5+ {[%clk 0:01:42]} 23. Kh1 {[%clk 0:00:53]}  Nf2+ {[%clk 0:01:41]} 24. Rxf2 {[%clk 0:00:52]}  Bxf2 {[%clk 0:01:40]} 25. Bxa6 {[%clk 0:00:50]}  O-O {[%clk 0:01:39]} 26. g3 {[%clk 0:00:48]}  Nd4 {[%clk 0:01:37]} 27. Ng5 {[%clk 0:00:46]}  Rc2 {[%clk 0:01:30]} 28. Bb4 {[%clk 0:00:39]}  Ra8 {[%clk 0:01:21]} 29. Bd3 {[%clk 0:00:30]}  Rb2 {[%clk 0:00:52]} 30. Bxh7+ {[%clk 0:00:21]}  Kh8 {[%clk 0:00:52]} 31. Bd3 {[%clk 0:00:20]}  Ra1+ {[%clk 0:00:28]} 32. Kg2 {[%clk 0:00:19]}  Be1+ {[%clk 0:00:28]} 33. Kh3 {[%clk 0:00:19]}  Rxb4 {[%clk 0:00:26]} 34. Rxf7 {[%clk 0:00:18]}  Ra8 {[%clk 0:00:23]} 35. Re7 {[%clk 0:00:16]}  Rb3 {[%clk 0:00:17]} 36. Bg6 {[%clk 0:00:14]}  Rf8 {[%clk 0:00:14]} 37. Nf7+ {[%clk 0:00:13]}  Kg8 {[%clk 0:00:14]} 38. Ng5 {[%clk 0:00:14]}  Bb4 {[%clk 0:00:13]} 39. Bh7+ {[%clk 0:00:13]}  Kh8 {[%clk 0:00:13]} 40. Rb7 {[%clk 0:00:12]}  Bc5 {[%clk 0:00:12]} 41. Rc7 {[%clk 0:00:12]}  Bb6 {[%clk 0:00:12]} 42. Rd7 {[%clk 0:00:11]}  Rb2 {[%clk 0:00:11]} 43. Bg6 {[%clk 0:00:10]}  Kg8 {[%clk 0:00:10]} 44. Bh7+ {[%clk 0:00:09]}  Kh8 {[%clk 0:00:11]} 45. Bg6 {[%clk 0:00:10]}  Bc5 {[%clk 0:00:09]} 46. Rc7 {[%clk 0:00:10]}  Rb5 {[%clk 0:00:08]} 47. Nf7+ {[%clk 0:00:09]}  Kg8 {[%clk 0:00:08]} 48. Ng5 {[%clk 0:00:10]}  Ra5 {[%clk 0:00:07]} 49. Bh7+ {[%clk 0:00:10]}  Kh8 {[%clk 0:00:07]} 50. Bg6 {[%clk 0:00:11]}  Bb6 {[%clk 0:00:07]} 51. Rb7 {[%clk 0:00:11]}  Bd8 {[%clk 0:00:07]} 52. Nf7+ {[%clk 0:00:10]}  Kg8 {[%clk 0:00:08]} 53. Nd6 {[%clk 0:00:10]}  Rc5 {[%clk 0:00:06]} 54. Kg4 {[%clk 0:00:10]}  Nc6 {[%clk 0:00:06]} 55. h4 {[%clk 0:00:10]}  Ne7 {[%clk 0:00:06]} 56. Bh5 {[%clk 0:00:09]}  Nf5 {[%clk 0:00:07]} 57. Bg6 {[%clk 0:00:08]}  Rc3 {[%clk 0:00:06]} 58. Nxf5 {[%clk 0:00:08]}  exf5+ {[%clk 0:00:07]} 59. Bxf5 {[%clk 0:00:08]}  d4 {[%clk 0:00:07]} 60. Be6+ {[%clk 0:00:09]}  Kh8 {[%clk 0:00:08]} 61. h5 {[%clk 0:00:09]}  d3 {[%clk 0:00:08]} 62. Rd7 {[%clk 0:00:09]}  Ba5 {[%clk 0:00:07]} 63. Bf5 {[%clk 0:00:09]}  d2 {[%clk 0:00:07]} 64. Rxd2 {[%clk 0:00:09]}  Rxg3+ {[%clk 0:00:07]} 65. Kxg3 {[%clk 0:00:09]}  Bxd2 {[%clk 0:00:08]} 66. Kg4 {[%clk 0:00:10]}  Be1 {[%clk 0:00:08]} 67. e6 {[%clk 0:00:10]}  Bb4 {[%clk 0:00:09]} 68. Kg5 {[%clk 0:00:10]}  Be7+ {[%clk 0:00:09]} 69. Kg6 {[%clk 0:00:10]}  Rf6+ {[%clk 0:00:10]} 70. Kg5 {[%clk 0:00:10]}  Rxe6+ {[%clk 0:00:10]} 71. Kg4 {[%clk 0:00:11]}  Rf6 {[%clk 0:00:11]} 72. Bg6 {[%clk 0:00:11]}  Bd6 {[%clk 0:00:12]} 73. f5 {[%clk 0:00:11]}  Kg8 {[%clk 0:00:12]} 74. Kf3 {[%clk 0:00:11]}  Rf8 {[%clk 0:00:12]} 75. Ke4 {[%clk 0:00:12]}  Be7 {[%clk 0:00:13]} 76. Kd5 {[%clk 0:00:12]}  Bf6 {[%clk 0:00:13]} 77. Ke6 {[%clk 0:00:13]}  Ra8 {[%clk 0:00:13]} 78. h6 {[%clk 0:00:13]}  Ra6+ {[%clk 0:00:12]} 79. Kd7 {[%clk 0:00:13]}  gxh6 {[%clk 0:00:12]} 0-1


[Site "https://www.chess.com"]